fUST/lending_fUST_20250620
["ID","MTS","AMOUNT","RATE_DAILY","PERIOD"]
[366673303,1750407045471,-463.8005875,0.00021917,6]
[366673305,1750407045481,-460.0,0.00021917,6]
[366673307,1750407045490,-460.0,0.00021917,6]
[366673309,1750407045501,-402.04295312,0.00021917,6]
[366673311,1750407045511,-485.92362259,0.00021917,6]
[366673313,1750407045521,-556.05223435,0.00021917,6]
[366673315,1750407045531,-460.0,0.00021917,6]
[366673317,1750407045540,-460.0,0.00021917,6]
[366673319,1750407045550,-460.0,0.00021917,6]
[366673321,1750407045560,-460.0,0.00021917,6]
[366673323,1750407045570,-430.0,0.00021917,6]
[366673325,1750407045579,-460.0,0.00021917,6]
[366673327,1750407045589,-466.44973048,0.00021917,6]
[366673329,1750407045599,-460.0,0.00021917,6]
[366673331,1750407045610,-460.0,0.00021917,6]
[366673333,1750407045620,-462.87314385,0.00021917,6]
[366673335,1750407045630,-482.14801053,0.00021917,6]
[366673337,1750407045640,-460.0,0.00021917,6]
[366673339,1750407045650,-460.0,0.00021917,6]
[366673341,1750407045659,-460.0,0.00021917,6]
[366673343,1750407045670,-460.0,0.00021917,6]
[366673345,1750407045681,-473.40890687,0.00021917,6]
[366673347,1750407045692,-410.0,0.00021917,6]
[366673349,1750407045702,-468.96057496,0.00021917,6]
[366673351,1750407045712,-432.95503368,0.00021917,6]
[366673353,1750407045721,-460.0,0.00021917,6]
[366673355,1750407045731,-442.93322256,0.00021917,6]
[366673357,1750407045740,-460.0,0.00021917,6]
[366673359,1750407045750,-460.0,0.00021917,6]
[366673361,1750407045759,-460.0,0.00021917,6]
[366673363,1750407045769,-460.0,0.00021917,6]
[366673365,1750407045779,-462.40441852,0.00021917,6]
[366673367,1750407045789,-460.0,0.00021917,6]
[366673369,1750407045798,-465.92170682,0.00021917,6]
[366673371,1750407045808,-460.0,0.00021917,6]
[366673373,1750407045818,-500.0,0.00021917,6]
[366673375,1750407045828,-473.36283636,0.00021917,6]
[366673377,1750407045838,-460.0,0.00021917,6]
[366673379,1750407045848,-465.57918972,0.00021917,6]
[366673381,1750407045858,-460.0,0.00021917,6]
[366673383,1750407045872,-460.0,0.00021917,6]
[366673386,1750407045888,-469.58707366,0.00021917,6]
[366673388,1750407045904,-460.0,0.00021917,6]
[366673391,1750407045919,-460.0,0.00021917,6]
[366673393,1750407045932,-460.0,0.00021917,6]
[366673395,1750407045944,-467.07414292,0.00021917,6]
[366673398,1750407045958,-460.0,0.00021917,6]
[366673400,1750407045974,-460.0,0.00021917,6]
[366673403,1750407045989,-35.24413884,0.00021917,6]
[366673444,1750407046641,-214.07362194,0.00021917,6]
[366673508,1750407047331,-5000.0,0.00021698,2]
[366673510,1750407047344,-213.8321336,0.00021917,6]
[366673512,1750407047355,-460.0,0.00021917,6]
[366673515,1750407047368,-460.0,0.00021917,6]
[366673517,1750407047380,-460.0,0.00021917,6]
[366673519,1750407047391,-464.81414166,0.00021917,6]
[366673521,1750407047403,-460.0,0.00021917,6]
[366673524,1750407047416,-460.0,0.00021917,6]
[366673526,1750407047428,-152.992038,0.00021917,2]
[366673528,1750407047440,-366.44101794,0.00021917,6]
[366673592,1750407048084,-93.55898206,0.00021917,6]
[366673594,1750407048094,-437.01109753,0.00021917,6]
[366673596,1750407048105,-382.5830671,0.00021917,6]
[366674044,1750407053045,-361.33876577,0.000219,6]
[366674615,1750407060506,-163.5887944,0.000219,6]
[366674949,1750407065044,-338.0,0.00021697,2]
[366675387,1750407091478,200.0,0.00023854,120]
[366675389,1750407248864,452.7552887,0.00019817,2]
[366675390,1750407267472,301.83685913,0.00019817,2]
[366675391,1750407271138,200.0,0.00024314,120]
[366675392,1750407331468,200.0,0.00024142,120]
[366675393,1750407352994,190.94764585,0.00024658,120]
[366675394,1750407380714,503.0,0.00024658,120]
[366675395,1750407440396,-154.0,0.00021367,2]
[366675397,1750407550554,201.22457275,0.00019817,2]
[366675398,1750407572676,150.0,0.00019817,2]
[366675399,1750407586752,6868.58442654,0.00020775,2]
[366675400,1750407586778,12000.0,0.00020775,2]
[366675401,1750407586804,6031.41557346,0.00020775,2]
[366675402,1750407615702,574.0,0.00024658,120]
[366675403,1750407627399,5000.0,0.000211,2]
[366675404,1750407642417,5000.0,0.000198,30]
[366675405,1750407642646,3968.58442654,0.000211,2]
[366675406,1750407642671,1031.41557346,0.000211,2]
[366675407,1750407657977,5000.0,0.000211,2]
[366675408,1750407673915,5000.0,0.000211,2]
[366675409,1750407691393,166.521947,0.00013699,2]
[366675410,1750407691443,200.0,0.00024164,120]
[366675411,1750407693252,150.5,0.00023278,120]
[366675413,1750407693888,207.52,0.00023268,120]
[366675414,1750407732976,3802.06247954,0.000211,2]
[366675415,1750407733001,1197.93752046,0.000211,2]
[366675416,1750407737331,173.2395068,0.00020818,2]
[366675417,1750407751356,200.0,0.00024503,120]
[366675418,1750407793095,5000.0,0.000211,2]
[366675420,1750407851788,150.0,0.00019817,2]
[366675421,1750407860481,442497.03260691,0.00025131,60]
[366675422,1750407871111,200.0,0.00023721,120]
[366675425,1750407964964,2595.2494661,0.0002079,2]
[366675429,1750408073603,368.03742075,0.00018,2]
[366675431,1750408110075,765.24039169,0.00019,2]
[366675432,1750408126276,4750.2956942,0.00015,2]
[366675433,1750408126301,11249.7043058,0.00015,2]
[366675434,1750408127066,209.66134048,0.00016,2]
[366675435,1750408128606,3540.63435372,0.0001,2]
[366675436,1750408128632,13523.05266802,0.0001,2]
[366675443,1750408171324,200.0,0.00024237,120]
[366675444,1750408179336,179.87408814,0.00019347,2]
[366675450,1750408229849,184.060435,0.00020753,2]
[366675451,1750408231058,200.0,0.00023879,120]
[366675491,1750408232841,-172.929395,0.00021129,2]
[366675494,1750408232851,-229.10863558,0.00021164,2]
[366675496,1750408232862,-427.88079357,0.0002126,2]
[366675498,1750408232873,-427.88079357,0.0002159,2]
[366675500,1750408232883,-160.0,0.00021637,2]
[366675502,1750408232893,-663.05763217,0.00021777,2]
[366675504,1750408232903,-427.88079357,0.00021785,2]
[366675505,1750408232912,-1002.34,0.00021819,2]
[366675507,1750408232922,-502.21576639,0.00021873,2]
[366675510,1750408232933,-500.0,0.00021873,2]
[366675512,1750408232944,-1200.0,0.00021874,2]
[366675514,1750408232954,-300.0,0.00021875,2]
[366675515,1750408232963,-300.0,0.00021875,2]
[366675517,1750408232974,-182.0,0.00021875,2]
[366675521,1750408232985,-10760.30603097,0.00021876,2]
[366675523,1750408233001,-25645.61010015,0.00021876,2]
[366675525,1750408233014,-3129.44206167,0.00021876,2]
[366675527,1750408233024,-500.0,0.00021877,2]
[366675530,1750408233034,-500.0,0.00021877,2]
[366675532,1750408233044,-500.0,0.00021877,2]
[366675534,1750408233055,-196.5009437,0.00021877,2]
[366675535,1750408233065,-500.0,0.00021877,2]
[366675538,1750408233076,-500.0,0.00021877,2]
[366675539,1750408233086,-500.0,0.00021877,2]
[366675542,1750408233096,-300.0,0.00021878,2]
[366675544,1750408233107,-8.68010549,0.00021879,2]
[366675546,1750408233119,-192.37289451,0.00021879,2]
[366675547,1750408233129,-177.91166212,0.00021879,2]
[366675549,1750408233139,-500.0,0.00021887,2]
[366675552,1750408233150,-151.0,0.00021894,2]
[366675554,1750408233160,-254.42936742,0.00021894,2]
[366675556,1750408233171,-151.0,0.00021894,2]
[366675557,1750408233180,-447.25920659,0.00021898,2]
[366675559,1750408233191,-593.32201621,0.000219,6]
[366675561,1750408233200,-500.0,0.00021916,2]
[366675563,1750408233213,-500.0,0.00021916,2]
[366675565,1750408233223,-500.0,0.00021916,2]
[366675567,1750408233234,-239.67075482,0.00021916,2]
[366675569,1750408233245,-500.0,0.00021916,2]
[366675571,1750408233254,-500.0,0.00021916,2]
[366675573,1750408233265,-500.0,0.00021916,2]
[366675575,1750408233275,-438.38580311,0.00021916,2]
[366675578,1750408233289,-61.61419689,0.00021916,2]
[366675580,1750408233298,-500.0,0.00021916,2]
[366675582,1750408233308,-500.0,0.00021916,2]
[366675584,1750408233318,-53.90350486,0.00021916,2]
[366675586,1750408233331,-446.09649514,0.00021916,2]
[366675588,1750408233340,-500.0,0.00021916,2]
[366675590,1750408233350,-500.0,0.00021916,2]
[366675592,1750408233360,-500.0,0.00021916,2]
[366675594,1750408233370,-500.0,0.00021916,2]
[366675596,1750408233381,-500.0,0.00021916,2]
[366675598,1750408233391,-500.0,0.00021916,2]
[366675600,1750408233401,-500.0,0.00021916,2]
[366675602,1750408233412,-500.0,0.00021916,2]
[366675604,1750408233423,-500.0,0.00021916,2]
[366675606,1750408233433,-500.0,0.00021916,2]
[366675608,1750408233443,-500.0,0.00021916,2]
[366675610,1750408233453,-500.0,0.00021916,2]
[366675612,1750408233463,-458.53211862,0.00021916,2]
[366675614,1750408233474,-500.0,0.00021916,2]
[366675617,1750408233484,-500.0,0.00021916,2]
[366675618,1750408233494,-500.0,0.00021916,2]
[366675621,1750408233504,-160.0,0.00021916,2]
[366675622,1750408233515,-512.9428965,0.00021917,6]
[366675625,1750408233525,-460.0,0.00021917,6]
[366675627,1750408233535,-175.06067652,0.00021917,2]
[366675629,1750408233545,-441.44324891,0.00021917,6]
[366675631,1750408233554,-151.0,0.00021917,2]
[366675633,1750408233564,-151.0,0.00021917,2]
[366675634,1750408233574,-460.0,0.00021917,6]
[366675637,1750408233584,-460.0,0.00021917,6]
[366675639,1750408233594,-340.0,0.00021917,6]
[366675641,1750408233604,-460.0,0.00021917,6]
[366675643,1750408233614,-200.0,0.00021917,2]
[366675645,1750408233626,-429.98072038,0.00021917,6]
[366675646,1750408233636,-198.72089041,0.00021917,2]
[366675648,1750408233647,-440.0,0.00021917,6]
[366675651,1750408233657,-151.0,0.00021917,2]
[366675654,1750408233680,-299.15434,0.00021917,2]
[366675656,1750408233692,-431.55068324,0.00021917,6]
[366675658,1750408233703,-400.41226605,0.00021917,2]
[366675660,1750408233713,-430.0,0.00021917,6]
[366675662,1750408233724,-460.0,0.00021917,6]
[366675664,1750408233735,-460.0,0.00021917,6]
[366675666,1750408233747,-448.0538699,0.00021917,6]
[366675669,1750408233757,-440.0,0.00021917,6]
[366675670,1750408233769,-460.0,0.00021917,6]
[366675673,1750408233779,-500.0,0.00021917,2]
[366675675,1750408233789,-205.87980037,0.00021917,2]
[366675677,1750408233799,-467.50438937,0.00021917,6]
[366675679,1750408233809,-448.65242438,0.00021917,6]
[366675681,1750408233819,-368.92888751,0.00021917,6]
[366675683,1750408233829,-422.94856961,0.00021917,6]
[366675685,1750408233838,-470.90289639,0.00021917,6]
[366675687,1750408233850,-268.45547002,0.00021917,6]
[366675689,1750408233860,-416.7126661,0.00021917,6]
[366675691,1750408233871,-460.0,0.00021917,6]
[366675692,1750408233881,-460.0,0.00021917,6]
[366675693,1750408233892,-460.0,0.00021917,6]
[366675694,1750408233903,-472.93202417,0.00021917,6]
[366675696,1750408233913,-469.62838835,0.00021917,6]
[366675698,1750408233925,-469.47656936,0.00021917,6]
[366675700,1750408233935,-500.0,0.00021917,6]
[366675701,1750408233946,-510.81729339,0.00021917,6]
[366675702,1750408233956,-464.631749,0.00021917,6]
[366675703,1750408233967,-460.0,0.00021917,6]
[366675704,1750408233977,-460.0,0.00021917,6]
[366675705,1750408233989,-466.44973048,0.00021917,6]
[366675706,1750408234000,-410.0,0.00021917,6]
[366675709,1750408234010,-199.14533658,0.00021917,6]
[366675711,1750408234021,-462.40441852,0.00021917,6]
[366675713,1750408234031,-310.0,0.00021917,6]
[366675715,1750408234041,-472.05868819,0.00021917,6]
[366675717,1750408234051,-460.0,0.00021917,6]
[366675719,1750408234061,-460.0,0.00021917,6]
[366675720,1750408234071,-500.0,0.00021917,6]
[366675722,1750408234081,-460.0,0.00021917,6]
[366675724,1750408234091,-460.0,0.00021917,6]
[366675726,1750408234102,-448.01021229,0.00021917,6]
[366675728,1750408234111,-460.0,0.00021917,6]
[366675730,1750408234123,-460.0,0.00021917,6]
[366675732,1750408234133,-460.0,0.00021917,6]
[366675734,1750408234143,-460.0,0.00021917,6]
[366675736,1750408234153,-460.0,0.00021917,6]
[366675738,1750408234164,-460.0,0.00021917,6]
[366675740,1750408234173,-367.66414172,0.00021917,6]
[366675742,1750408234184,-350.75634162,0.00021917,6]
[366675744,1750408234195,-463.74320035,0.00021917,6]
[366675746,1750408234207,-204.8174442,0.00021917,6]
[366675865,1750408238829,-500.0,0.00021875,2]
[366675866,1750408238839,-500.0,0.00021875,2]
[366675867,1750408238849,-500.0,0.00021875,2]
[366675868,1750408238860,-399.76952496,0.00021875,2]
[366675869,1750408238869,-501.69772517,0.00021875,2]
[366675870,1750408238881,-500.0,0.00021875,2]
[366675871,1750408238891,-500.0,0.00021875,2]
[366675872,1750408238902,-500.0,0.00021875,2]
[366675873,1750408238911,-353.7245542,0.00021875,2]
[366675874,1750408238921,-500.0,0.00021875,2]
[366675875,1750408238930,-500.0,0.00021875,2]
[366675876,1750408238940,-500.0,0.00021875,2]
[366675877,1750408238949,-355.16677152,0.00021875,2]
[366675878,1750408238959,-500.0,0.00021875,2]
[366675879,1750408238968,-500.0,0.00021875,2]
[366675880,1750408238978,-253.24622039,0.00021875,2]
[366675881,1750408238987,-500.0,0.00021875,2]
[366675882,1750408238997,-500.0,0.00021875,2]
[366675883,1750408239006,-500.0,0.00021875,2]
[366675884,1750408239016,-500.0,0.00021875,2]
[366675885,1750408239025,-500.0,0.00021875,2]
[366675886,1750408239035,-500.0,0.00021875,2]
[366675887,1750408239044,-500.0,0.00021875,2]
[366675888,1750408239054,-500.0,0.00021875,2]
[366675889,1750408239064,-500.0,0.00021875,2]
[366675890,1750408239073,-500.0,0.00021875,2]
[366675891,1750408239083,-500.0,0.00021875,2]
[366675892,1750408239243,-500.0,0.00021875,2]
[366675893,1750408239259,-500.0,0.00021875,2]
[366675894,1750408239269,-500.0,0.00021875,2]
[366675895,1750408239279,-500.0,0.00021875,2]
[366675896,1750408239290,-500.0,0.00021875,2]
[366675897,1750408239299,-500.0,0.00021875,2]
[366675898,1750408239309,-500.0,0.00021875,2]
[366675899,1750408239319,-500.0,0.00021875,2]
[366675900,1750408239329,-500.0,0.00021875,2]
[366675901,1750408239340,-500.0,0.00021875,2]
[366675902,1750408239349,-500.0,0.00021875,2]
[366675903,1750408239360,-500.0,0.00021875,2]
[366675904,1750408239370,-500.0,0.00021875,2]
[366675905,1750408239382,-500.0,0.00021875,2]
[366675906,1750408239393,-500.0,0.00021875,2]
[366675907,1750408239403,-500.0,0.00021875,2]
[366675908,1750408239412,-500.0,0.00021875,2]
[366675909,1750408239422,-500.0,0.00021875,2]
[366675910,1750408239432,-500.0,0.00021875,2]
[366675911,1750408239441,-500.0,0.00021875,2]
[366675912,1750408239451,-243.41168246,0.00021875,2]
[366675913,1750408239461,-500.0,0.00021875,2]
[366675914,1750408239471,-500.0,0.00021875,2]
[366675915,1750408239480,-500.0,0.00021875,2]
[366675916,1750408239491,-500.0,0.00021875,2]
[366675917,1750408239502,-500.0,0.00021875,2]
[366675918,1750408239512,-500.0,0.00021875,2]
[366675919,1750408239521,-500.0,0.00021875,2]
[366675920,1750408239531,-500.0,0.00021875,2]
[366675921,1750408239541,-500.0,0.00021875,2]
[366675922,1750408239551,-500.0,0.00021875,2]
[366675925,1750408239562,-500.0,0.00021875,2]
[366675927,1750408239573,-500.0,0.00021875,2]
[366675929,1750408239584,-500.0,0.00021875,2]
[366675931,1750408239595,-500.0,0.00021875,2]
[366675933,1750408239606,-500.0,0.00021875,2]
[366675934,1750408239616,-500.0,0.00021875,2]
[366675935,1750408239629,-500.0,0.00021875,2]
[366675936,1750408239639,-500.0,0.00021875,2]
[366675937,1750408239648,-500.0,0.00021875,2]
[366675938,1750408239660,-500.0,0.00021875,2]
[366675939,1750408239670,-500.0,0.00021875,2]
[366675940,1750408239680,-500.0,0.00021875,2]
[366675941,1750408239691,-500.0,0.00021875,2]
[366675942,1750408239701,-500.0,0.00021875,2]
[366675943,1750408239710,-500.0,0.00021875,2]
[366675944,1750408239720,-500.0,0.00021875,2]
[366675945,1750408239731,-500.0,0.00021875,2]
[366675946,1750408239741,-500.0,0.00021875,2]
[366675947,1750408239751,-500.0,0.00021875,2]
[366675949,1750408239761,-500.0,0.00021875,2]
[366675951,1750408239771,-500.0,0.00021875,2]
[366675953,1750408239781,-500.0,0.00021875,2]
[366675955,1750408239790,-500.0,0.00021875,2]
[366675957,1750408239800,-255.1825558,0.00021917,6]
[366675959,1750408239810,-460.0,0.00021917,6]
[366675961,1750408239819,-477.75819282,0.00021917,6]
[366675963,1750408239829,-460.0,0.00021917,6]
[366675965,1750408239839,-460.0,0.00021917,6]
[366675967,1750408239849,-474.69405482,0.00021917,6]
[366675969,1750408239858,-460.0,0.00021917,6]
[366675971,1750408239868,-460.0,0.00021917,6]
[366675973,1750408239880,-460.0,0.00021917,6]
[366675974,1750408239890,-483.30281201,0.00021917,6]
[366675976,1750408239900,-460.0,0.00021917,6]
[366675977,1750408239910,-460.0,0.00021917,6]
[366675978,1750408239919,-460.0,0.00021917,6]
[366675979,1750408239930,-460.0,0.00021917,6]
[366675980,1750408239939,-460.0,0.00021917,6]
[366675981,1750408239949,-460.0,0.00021917,6]
[366675982,1750408239959,-460.0,0.00021917,6]
[366675983,1750408239969,-576.25865728,0.00021917,6]
[366675984,1750408239979,-473.40890687,0.00021917,6]
[366675985,1750408239988,-402.90672689,0.00021917,6]
[366675986,1750408239999,-460.0,0.00021917,6]
[366675987,1750408240009,-460.0,0.00021917,6]
[366675988,1750408240019,-506.09304952,0.00021917,6]
[366675989,1750408240029,-472.89085057,0.00021917,6]
[366675990,1750408240039,-460.0,0.00021917,6]
[366675991,1750408240048,-1296.29,0.00021917,6]
[366675992,1750408240058,-460.0,0.00021917,6]
[366675993,1750408240068,-467.59612044,0.00021917,6]
[366675994,1750408240078,-460.0,0.00021917,6]
[366675995,1750408240088,-460.0,0.00021917,6]
[366675996,1750408240099,-463.36034885,0.00021917,6]
[366675997,1750408240109,-460.0,0.00021917,6]
[366675998,1750408240120,-460.0,0.00021917,6]
[366675999,1750408240131,-374.27853906,0.00021917,6]
[366676000,1750408240141,-460.0,0.00021917,6]
[366676001,1750408240151,-460.0,0.00021917,6]
[366676002,1750408240162,-556.05223435,0.00021917,6]
[366676003,1750408240172,-460.0,0.00021917,6]
[366676004,1750408240182,-460.0,0.00021917,6]
[366676005,1750408240192,-488.70675654,0.00021917,6]
[366676006,1750408240207,-462.87314385,0.00021917,6]
[366676007,1750408240219,-460.0,0.00021917,6]
[366676008,1750408240230,-460.0,0.00021917,6]
[366676009,1750408240240,-482.14801053,0.00021917,6]
[366676010,1750408240250,-460.0,0.00021917,6]
[366676011,1750408240260,-432.95503368,0.00021917,6]
[366676012,1750408240270,-460.0,0.00021917,6]
[366676013,1750408240280,-485.92362259,0.00021917,6]
[366676014,1750408240291,-473.36283636,0.00021917,6]
[366676015,1750408240301,-442.93322256,0.00021917,6]
[366676016,1750408240311,-460.0,0.00021917,6]
[366676017,1750408240321,-460.0,0.00021917,6]
[366676018,1750408240331,-460.0,0.00021917,6]
[366676019,1750408240340,-480.71091379,0.00021917,6]
[366676020,1750408240351,-460.0,0.00021917,6]
[366676021,1750408240360,-460.0,0.00021917,6]
[366676022,1750408240370,-460.0,0.00021917,6]
[366676023,1750408240382,-460.0,0.00021917,6]
[366676024,1750408240392,-460.0,0.00021917,6]
[366676025,1750408240402,-460.0,0.00021917,6]
[366676026,1750408240412,-460.0,0.00021917,6]
[366676027,1750408240421,-460.0,0.00021917,6]
[366676028,1750408240431,-460.0,0.00021917,6]
[366676029,1750408240441,-460.0,0.00021917,6]
[366676030,1750408240451,-460.0,0.00021917,6]
[366676031,1750408240461,-460.0,0.00021917,6]
[366676032,1750408240471,-462.7142722,0.00021917,6]
[366676033,1750408240481,-460.0,0.00021917,6]
[366676034,1750408240491,-465.57918972,0.00021917,6]
[366676035,1750408240501,-460.0,0.00021917,6]
[366676036,1750408240511,-467.07414292,0.00021917,6]
[366676037,1750408240521,-469.58707366,0.00021917,6]
[366676038,1750408240531,-460.0,0.00021917,6]
[366676039,1750408240540,-460.0,0.00021917,6]
[366676040,1750408240550,-465.75154183,0.00021917,6]
[366676041,1750408240559,-460.0,0.00021917,6]
[366676042,1750408240569,-460.0,0.00021917,6]
[366676043,1750408240579,-463.8005875,0.00021917,6]
[366676044,1750408240589,-460.0,0.00021917,6]
[366676045,1750408240598,-460.0,0.00021917,6]
[366676046,1750408240608,-460.0,0.00021917,6]
[366676047,1750408240617,-467.39867764,0.00021917,6]
[366676048,1750408240628,-460.0,0.00021917,6]
[366676050,1750408240638,-460.0,0.00021917,6]
[366676051,1750408240648,-460.0,0.00021917,6]
[366676053,1750408240657,-460.0,0.00021917,6]
[366676055,1750408240667,-460.0,0.00021917,6]
[366676057,1750408240677,-460.0,0.00021917,6]
[366676059,1750408240686,-468.96057496,0.00021917,6]
[366676060,1750408240696,-460.0,0.00021917,6]
[366676062,1750408240706,-433.75446639,0.00021917,6]
[366676064,1750408240715,-460.0,0.00021917,6]
[366676066,1750408240725,-402.04295312,0.00021917,6]
[366676068,1750408240734,-465.92170682,0.00021917,6]
[366676070,1750408240744,-460.0,0.00021917,6]
[366676072,1750408240754,-460.0,0.00021917,6]
[366676074,1750408240763,-460.0,0.00021917,6]
[366676076,1750408240773,-460.0,0.00021917,6]
[366676078,1750408240783,-460.0,0.00021917,6]
[366676080,1750408240793,-333.53804419,0.00021917,6]
[366676082,1750408240802,-424.49034885,0.00021917,6]
[366676084,1750408240811,-460.0,0.00021917,6]
[366676086,1750408240821,-460.0,0.00021917,6]
[366676088,1750408240830,-460.0,0.00021917,6]
[366676090,1750408240840,-460.0,0.00021917,6]
[366676091,1750408240849,-399.68014378,0.00021917,6]
[366676093,1750408240858,-460.0,0.00021917,6]
[366676095,1750408240868,-460.0,0.00021917,6]
[366676097,1750408240879,-358.19581504,0.00021917,6]
[366676099,1750408240889,-468.43061711,0.00021917,6]
[366676101,1750408240899,-460.0,0.00021917,6]
[366676103,1750408240909,-444.90837144,0.00021917,6]
[366676105,1750408240918,-460.0,0.00021917,6]
[366676107,1750408240928,-451.37148747,0.00021917,6]
[366676109,1750408240938,-460.0,0.00021917,6]
[366676111,1750408240947,-467.36758368,0.00021917,6]
[366676113,1750408240957,-460.0,0.00021917,6]
[366676115,1750408240966,-500.0,0.00021917,6]
[366676117,1750408240977,-500.0,0.00021917,6]
[366676119,1750408240986,-273.98373427,0.00021917,6]
[366676121,1750408240996,-420.36975692,0.00021917,6]
[366676123,1750408241006,-469.51749051,0.00021917,6]
[366676125,1750408241015,-447.11903287,0.00021917,6]
[366676127,1750408241025,-511.00428479,0.00021917,6]
[366676129,1750408241035,-590.14560076,0.00021917,6]
[366676131,1750408241044,-460.0,0.00021917,6]
[366676133,1750408241053,-460.0,0.00021917,6]
[366676135,1750408241063,-467.19487895,0.00021917,6]
[366676137,1750408241072,-460.0,0.00021917,6]
[366676139,1750408241082,-466.75127127,0.00021917,6]
[366676141,1750408241091,-460.0,0.00021917,6]
[366676142,1750408241101,-386.31819474,0.00021917,6]
[366676144,1750408241111,-445.23708259,0.00021917,6]
[366676145,1750408241120,-460.0,0.00021917,2]
[366676146,1750408241132,-404.96027266,0.00021917,6]
[366676147,1750408241141,-460.0,0.00021917,6]
[366676148,1750408241151,-468.3366235,0.00021917,6]
[366676149,1750408241161,-460.0,0.00021917,6]
[366676150,1750408241170,-460.0,0.00021917,6]
[366676151,1750408241180,-460.0,0.00021917,6]
[366676152,1750408241190,-460.0,0.00021917,6]
[366676153,1750408241200,-460.0,0.00021917,6]
[366676154,1750408241210,-1391.78,0.00021917,2]
[366676155,1750408241222,-460.0,0.00021917,6]
[366676156,1750408241232,-175.06067652,0.00021917,2]
[366676157,1750408241243,-151.0,0.00021921,2]
[366676158,1750408241253,-151.0,0.00021949,2]
[366676160,1750408241263,-292.50973245,0.00021972,2]
[366676161,1750408241273,-500.0,0.00021973,2]
[366676162,1750408241283,-151.0,0.00021973,7]
[366676163,1750408241295,-151.0,0.00021976,2]
[366676164,1750408241304,-151.0,0.0002199,7]
[366676165,1750408241314,-100000.0,0.0002199,2]
[366676166,1750408241324,-162.332895,0.00022,2]
[366676167,1750408241333,-162.332895,0.00022,2]
[366676169,1750408241343,-481.09,0.00022,7]
[366676171,1750408241352,-245.0,0.00022004,2]
[366676173,1750408241362,-502.41067628,0.00022023,2]
[366676175,1750408241372,-501.68685801,0.00022023,2]
[366676177,1750408241387,-500.0,0.00022023,2]
[366676179,1750408241397,-537.978401,0.00022023,2]
[366676180,1750408241407,-500.0,0.00022026,2]
[366676182,1750408241417,-593.32201618,0.00022038,6]
[366676183,1750408241426,-472.56389873,0.00022046,2]
[366676185,1750408241436,-502.21511315,0.00022057,2]
[366676186,1750408241446,-500.0,0.00022057,2]
[366676187,1750408241456,-500.0,0.00022057,2]
[366676188,1750408241465,-283.90234346,0.00022058,2]
[366676189,1750408241475,-500.0,0.00022058,2]
[366676190,1750408241485,-168.0,0.00022073,2]
[366676191,1750408241494,-500.0,0.00022079,2]
[366676192,1750408241504,-503.57843623,0.00022079,2]
[366676193,1750408241513,-507.78191988,0.000221,2]
[366676194,1750408241523,-500.0,0.000221,2]
[366676195,1750408241533,-500.0,0.000221,2]
[366676196,1750408241543,-500.0,0.0002211,2]
[366676197,1750408241553,-500.0,0.0002211,2]
[366676198,1750408241563,-366.83458282,0.00022138,2]
[366676199,1750408241573,-215.81158688,0.00022171,2]